lending/lending_fUSD_20260204
["ID","MTS","AMOUNT","RATE_DAILY","PERIOD"]
[404491960,1770213042769,-500.0,0.00013698,2]
[404491961,1770213042779,-600.86,0.00013698,2]
[404491962,1770213042787,-521.96758579,0.00013698,2]
[404491963,1770213042798,-500.0,0.00013698,2]
[404491964,1770213042807,-500.0,0.00013698,2]
[404491965,1770213042817,-500.0,0.00013698,2]
[404491966,1770213042826,-500.0,0.00013698,2]
[404491967,1770213042840,-500.0,0.00013698,2]
[404491968,1770213042849,-500.0,0.00013698,2]
[404491969,1770213042859,-500.0,0.00013698,2]
[404491970,1770213042868,-500.0,0.00013698,2]
[404491971,1770213042878,-500.0,0.00013698,2]
[404491972,1770213042887,-508.28,0.00013698,2]
[404491973,1770213042897,-500.0,0.00013698,2]
[404491974,1770213042906,-500.0,0.00013698,2]
[404491975,1770213042916,-500.0,0.00013698,2]
[404491976,1770213042927,-500.0,0.00013698,2]
[404491977,1770213042939,-500.0,0.00013698,2]
[404491978,1770213042948,-500.0,0.00013698,2]
[404491979,1770213042957,-500.0,0.00013698,2]
[404491980,1770213042968,-500.0,0.00013698,2]
[404491981,1770213042978,-500.0,0.00013698,2]
[404491982,1770213042987,-500.0,0.00013698,2]
[404491983,1770213042996,-500.0,0.00013698,2]
[404491984,1770213043006,-500.0,0.00013698,2]
[404491985,1770213043016,-500.0,0.00013698,2]
[404491986,1770213043025,-500.0,0.00013698,2]
[404491987,1770213043038,-500.0,0.00013698,2]
[404491988,1770213043049,-500.0,0.00013698,2]
[404491989,1770213043058,-500.0,0.00013698,2]
[404491990,1770213043067,-500.0,0.00013698,2]
[404491991,1770213043076,-500.0,0.00013698,2]
[404491992,1770213043086,-500.0,0.00013698,2]
[404491993,1770213043096,-500.0,0.00013698,2]
[404491994,1770213043106,-500.0,0.00013698,2]
[404491995,1770213043115,-500.0,0.00013698,2]
[404491996,1770213043126,-500.0,0.00013698,2]
[404491997,1770213043135,-500.0,0.00013698,2]
[404491998,1770213043144,-500.0,0.00013698,2]
[404491999,1770213043153,-500.0,0.00013698,2]
[404492000,1770213043162,-500.0,0.00013698,2]
[404492001,1770213043172,-500.0,0.00013698,2]
[404492002,1770213043181,-500.0,0.00013698,2]
[404492003,1770213043190,-201.21918147,0.00013698,2]
[404492004,1770213043199,-500.0,0.00013698,2]
[404492005,1770213043208,-500.0,0.00013698,2]
[404492006,1770213043217,-500.0,0.00013698,2]
[404492007,1770213043226,-500.0,0.00013698,2]
[404492008,1770213043238,-500.0,0.00013698,2]
[404492009,1770213043247,-500.0,0.00013698,2]
[404492010,1770213043256,-500.0,0.00013698,2]
[404492011,1770213043267,-500.0,0.00013698,2]
[404492012,1770213043276,-500.0,0.00013698,2]
[404492013,1770213043285,-179.76637926,0.00013698,2]
[404492042,1770213043792,-320.23362074,0.00013698,2]
[404492043,1770213043804,-500.0,0.00013698,2]
[404492044,1770213043813,-248.79623194,0.00013698,2]
[404492045,1770213043822,-61.47864732,0.00013698,2]
[404492046,1770213043856,-433.07152904,0.00013698,2]
[404492047,1770213044801,-8.76475804,0.00013698,2]
[404492048,1770213044813,-500.0,0.00013698,2]
[404492049,1770213044822,-22.70063196,0.00013698,2]
[404492068,1770213045934,-477.29936804,0.00013698,2]
[404492070,1770213045947,-500.0,0.00013698,2]
[404492072,1770213045956,-500.0,0.00013698,2]
[404492074,1770213045966,-500.0,0.00013698,2]
[404492076,1770213045975,-500.0,0.00013698,2]
[404492078,1770213045986,-500.0,0.00013698,2]
[404492080,1770213045995,-500.0,0.00013698,2]
[404492082,1770213046005,-500.0,0.00013698,2]
[404492084,1770213046015,-500.0,0.00013698,2]
[404492086,1770213046024,-500.0,0.00013698,2]
[404492087,1770213046033,-500.0,0.00013698,2]
[404492088,1770213046043,-500.0,0.00013698,2]
[404492089,1770213046059,-500.0,0.00013698,2]
[404492090,1770213046068,-516.54058196,0.00013698,2]
[404492091,1770213046077,-500.0,0.00013698,2]
[404492092,1770213046087,-500.0,0.00013698,2]
[404492093,1770213046096,-500.0,0.00013698,2]
[404492094,1770213046106,-424.66234694,0.00013698,2]
[404492095,1770213046117,-75.33765306,0.00013698,2]
[404492096,1770213046127,-500.0,0.00013698,2]
[404492097,1770213046135,-500.0,0.00013698,2]
[404492098,1770213046144,-289.66967102,0.00013698,2]
[404492099,1770213046158,-210.33032898,0.00013698,2]
[404492100,1770213046167,-500.0,0.00013698,2]
[404492101,1770213046177,-500.0,0.00013698,2]
[404492102,1770213046186,-500.0,0.00013698,2]
[404492103,1770213046195,-5192.39701262,0.00013698,2]
[404492104,1770213046204,-665.27265841,0.00013698,2]
[404492105,1770213046215,-462.85189692,0.00013698,2]
[404492106,1770213046241,-336.44422143,0.00013698,2]
[404492107,1770213046252,-1704.90867731,0.00013698,2]
[404492108,1770213046261,-500.0,0.00013698,2]
[404492109,1770213046270,-500.0,0.00013698,2]
[404492110,1770213046279,-500.0,0.00013698,2]
[404492111,1770213046289,-500.0,0.00013698,2]
[404492112,1770213046301,-500.0,0.00013698,2]
[404492113,1770213046310,-500.0,0.00013698,2]
[404492114,1770213046319,-500.0,0.00013698,2]
[404492115,1770213046328,-500.0,0.00013698,2]
[404492116,1770213046337,-513.21673603,0.00013698,2]
[404492117,1770213046346,-500.0,0.00013698,2]
[404492118,1770213046355,-500.0,0.00013698,2]
[404492120,1770213046364,-191.71020026,0.00013698,2]
[404492124,1770213046393,-308.28979974,0.00013698,2]
[404492125,1770213046402,-500.0,0.00013698,2]
[404492126,1770213046411,-500.0,0.00013698,2]
[404492127,1770213046420,-234.378992,0.00013698,2]
[404492128,1770213046429,-500.0,0.00013698,2]
[404492129,1770213046439,-500.0,0.00013698,2]
[404492130,1770213046448,-500.0,0.00013698,2]
[404492131,1770213046457,-4508.40025516,0.00013699,2]
[404492202,1770213684228,-1337.759484,0.00012143,2]
[404492203,1770213732849,-250.0,0.00012204,2]
[404492204,1770213732876,-251.82118686,0.00012266,2]
[404492205,1770213732902,-438.29863223,0.00012266,2]
[404492206,1770213732927,-388.11482382,0.0001235,2]
[404492207,1770213732953,-175.19283792,0.00012366,2]
[404492208,1770213732980,-1200.0,0.00012396,2]
[404492209,1770213733007,-1200.0,0.00012396,2]
[404492210,1770213733033,-300.0,0.00012396,2]
[404492211,1770213733059,-1162.37389336,0.00012397,2]
[404492212,1770213733085,-1162.37389336,0.00012397,2]
[404492213,1770213733111,-4153.91761013,0.00012397,2]
[404492214,1770213733147,-175.5376045,0.00012397,2]
[404492215,1770213733176,-196.73378138,0.00012397,2]
[404492216,1770213733204,-300.0,0.00012469,2]
[404492217,1770213733235,-500.0,0.0001247,2]
[404492218,1770213733260,-150.0,0.0001247,2]
[404492219,1770213733284,-500.0,0.0001248,2]
[404492220,1770213733309,-150.0,0.00012496,2]
[404492221,1770213733334,-7.87625244,0.00012496,2]
[404492222,1770213759710,-495.3761,0.00012235,2]
[404492223,1770214121928,504.6239,0.00012197,2]
[404492241,1770214231912,-549.90444418,0.00012197,2]
[404492242,1770214231955,-79.9260079,0.00012197,2]
[404492243,1770214231964,-226.0739921,0.00012211,2]
[404492244,1770214231975,-1032.8660079,0.00012211,2]
[404492245,1770214231987,-151.0,0.00012294,2]
[404492246,1770214232000,-150.0,0.00012296,2]
[404492247,1770214232017,-300.0,0.00012296,2]
[404492248,1770214232027,-300.0,0.00012296,2]
[404492249,1770214232037,-1200.0,0.00012296,2]
[404492250,1770214232046,-14254.66191604,0.00012297,2]
[404492251,1770214232058,-100212.84769162,0.00012297,2]
[404492252,1770214232070,-1134.20792491,0.00012297,2]
[404492266,1770214232275,-500.0,0.00012297,2]
[404492269,1770214232287,-753.94627524,0.00012297,2]
[404492271,1770214232297,-1337.70986208,0.00012297,2]
[404492273,1770214232309,-1257.02204758,0.00012297,2]
[404492276,1770214232327,-3302.99989001,0.00012297,2]
[404492278,1770214232338,-298.1025574,0.00012297,2]
[404492339,1770214238154,-1072.40294018,0.00012297,2]
[404492340,1770214238214,-1741.48362425,0.00012297,2]
[404492341,1770214238287,-10101.84999995,0.00012297,2]
[404492342,1770214238299,-73189.84712657,0.00012297,2]
[404492343,1770214238311,-799.11264715,0.00012297,2]
[404492344,1770214238323,-11079.92670584,0.00012297,2]
[404492345,1770214238337,-606.95909404,0.00012297,2]
[404492346,1770214238350,-74999.99999991,0.00012297,2]
[404492352,1770214240128,-30864.37590098,0.00012297,2]
[404492354,1770214240139,-1269.9727187,0.00012297,2]
[404492355,1770214240195,-20162.3459,0.00012297,2]
[404492356,1770214240256,-3756.37001003,0.00012297,2]
[404492357,1770214240483,-3054826.8140686,0.00012297,2]
[404492381,1770214243989,-38.34162878,0.00012297,2]
[404492383,1770214244005,-531.774,0.00012297,2]
[404492384,1770214244017,-564.94350565,0.00012297,2]
[404492385,1770214244067,-3751.72624591,0.00012297,2]
[404492386,1770214245228,-87590.25571858,0.00012297,2]
[404492387,1770214245238,-2500.0,0.00012297,2]
[404492388,1770214245249,-2706.07283105,0.00012297,2]
[404492389,1770214245258,-858.37577919,0.00012297,2]
[404492390,1770214245268,-3738.52584909,0.00012297,2]
[404492391,1770214245278,-967.98,0.00012333,2]
[404492392,1770214245288,-500.0,0.0001237,2]
[404492393,1770214245297,-150.0,0.0001237,2]
[404492394,1770214245306,-180.00434459,0.00012397,2]
[404492395,1770214245318,-2327.6382,0.00012397,2]
[404492396,1770214245327,-7563.9832,0.00012397,2]
[404492397,1770214245336,-500.0,0.00012425,2]
[404492398,1770214245345,-4462.53651523,0.00012443,2]
[404492399,1770214245355,-500.0,0.0001248,2]
[404492400,1770214245364,-151.0,0.00012489,2]
[404492401,1770214245373,-151.0,0.00012489,2]
[404492402,1770214245383,-151.0,0.00012489,2]
[404492403,1770214245392,-151.0,0.00012489,2]
[404492404,1770214245402,-151.0,0.00012489,2]
[404492405,1770214245411,-151.0,0.00012489,2]
[404492406,1770214245420,-151.0,0.00012489,2]
[404492407,1770214245429,-151.0,0.00012489,2]
[404492408,1770214245438,-151.0,0.00012489,2]
[404492409,1770214245447,-151.0,0.00012489,2]
[404492410,1770214245459,-151.0,0.00012489,2]
[404492411,1770214245469,-500.0,0.00012489,2]
[404492412,1770214245478,-500.0,0.00012489,2]
[404492413,1770214245487,-500.0,0.00012489,2]
[404492414,1770214245496,-500.0,0.00012489,2]
[404492415,1770214245507,-500.0,0.00012489,2]
[404492416,1770214245516,-1583.60274756,0.00012496,2]
[404492417,1770214245525,-156.558,0.00012496,2]
[404492418,1770214245535,-10000.0,0.00012497,2]
[404492419,1770214245544,-500.0,0.00012534,2]
[404492420,1770214245553,-266.29385383,0.00012589,2]
[404492421,1770214245563,-1452.43,0.00012589,2]
[404492422,1770214245572,-163.0,0.000126,2]
[404492423,1770214245581,-25968.81,0.00012634,2]
[404492424,1770214245591,-2706.07283098,0.00012697,2]
[404492425,1770214245600,-3738.52584909,0.00012697,2]
[404492426,1770214245610,-534.14396663,0.00012725,2]
[404492427,1770214245619,-1409.61437893,0.00012725,2]
[404492428,1770214245628,-2486.72685136,0.00012725,2]
[404492429,1770214245638,-1101.0,0.00012763,2]
[404492430,1770214245647,-500.0,0.00012782,2]
[404492431,1770214245656,-150.0,0.00012782,2]
[404492432,1770214245665,-193.0,0.0001283,2]
[404492433,1770214245674,-500.0,0.0001291,2]
[404492434,1770214245683,-1134.45435208,0.00013012,2]
[404492435,1770214245692,-500.0,0.00013037,2]
[404492436,1770214245701,-500.0,0.00013096,2]
[404492437,1770214245710,-2706.07283098,0.00013098,2]
[404492438,1770214245719,-3738.52584909,0.00013098,2]
[404492440,1770214245729,-211.84,0.00013167,2]
[404492442,1770214245740,-500.0,0.00013205,2]
[404492443,1770214245750,-500.0,0.00013382,2]
[404492444,1770214245759,-150.0,0.00013382,2]
[404492445,1770214245768,-500.0,0.00013382,2]
[404492446,1770214245777,-500.0,0.00013382,2]
[404492447,1770214245787,-255.0,0.0001339,2]
[404492449,1770214245796,-250.0,0.00013417,2]
[404492450,1770214245805,-300.0,0.00013417,2]
[404492451,1770214245814,-154.44018454,0.00013418,2]
[404492452,1770214245823,-500.0,0.00013418,2]
[404492453,1770214245832,-150.0,0.00013418,2]
[404492454,1770214245843,-150.0,0.00013418,2]
[404492455,1770214245854,-150.0,0.00013418,2]
[404492456,1770214245864,-150.0,0.00013418,2]
[404492457,1770214245874,-459.0,0.00013424,2]
[404492458,1770214245885,-500.0,0.00013437,2]
[404492459,1770214245894,-500.0,0.00013437,2]
[404492460,1770214245903,-500.0,0.00013437,2]
[404492461,1770214245912,-500.0,0.00013473,2]
[404492462,1770214245921,-150.0,0.00013473,2]
[404492463,1770214245930,-150.0,0.00013473,2]
[404492464,1770214245939,-150.0,0.00013473,2]
[404492465,1770214245950,-459.0,0.00013479,2]
[404492466,1770214245960,-179.4054645,0.00013492,2]
[404492467,1770214245968,-500.0,0.00013492,2]
[404492468,1770214245981,-500.0,0.00013492,2]
[404492469,1770214245990,-420.0,0.00013494,2]
[404492470,1770214246000,-2706.07283098,0.00013498,2]
[404492471,1770214246009,-3738.52584909,0.00013498,2]
[404492473,1770214246018,-1680.0,0.00013526,2]
[404492475,1770214246027,-300.0,0.00013527,2]
[404492477,1770214246036,-250.0,0.00013527,2]
[404492479,1770214246045,-361.68385218,0.00013528,2]
[404492481,1770214246054,-200.0,0.00013528,2]
[404492483,1770214246064,-183.0,0.00013528,2]
[404492484,1770214246073,-200.0,0.00013528,2]
[404492485,1770214246082,-459.0,0.00013534,2]
[404492486,1770214246091,-500.0,0.00013546,2]
[404492487,1770214246100,-500.0,0.00013546,2]
[404492488,1770214246110,-459.0,0.00013588,2]
[404492489,1770214246120,-163.0,0.000136,2]
[404492490,1770214246129,-239.92,0.000136,2]
[404492491,1770214246138,-529.82108988,0.00013601,2]
[404492492,1770214246148,-500.0,0.00013601,2]
[404492493,1770214246157,-459.0,0.00013643,2]
[404492494,1770214246167,-500.0,0.00013656,2]
[404492495,1770214246176,-858.37577915,0.00013698,2]
[404492496,1770214246187,-459.0,0.00013698,2]
[404492497,1770214246195,-10739.54962259,0.00013698,2]
[404492498,1770214246207,-2250.0,0.00013698,2]
[404492499,1770214246266,-2369.86880234,0.00013698,2]
[404492500,1770214246465,-1228.7602709,0.00013698,2]
[404492501,1770214246476,-7507.49999999,0.00013698,2]
[404492502,1770214246521,-12712.95310058,0.00013698,2]
[404492503,1770214246530,-3002.9386789,0.00013698,2]
[404492504,1770214246539,-549.35023034,0.00013698,2]
[404492505,1770214246548,-500.0,0.00013698,2]
[404492506,1770214246558,-500.0,0.00013698,2]
[404492507,1770214246567,-500.0,0.00013698,2]
[404492509,1770214246795,-500.0,0.00013698,2]
[404492510,1770214246813,-500.0,0.00013698,2]
[404492511,1770214246823,-392.76776902,0.00013698,2]
[404492512,1770214246832,-500.0,0.00013698,2]
[404492513,1770214246841,-500.0,0.00013698,2]
[404492514,1770214246851,-17988.23647,0.00013698,2]
[404492515,1770214246859,-500.0,0.00013698,2]
[404492516,1770214246869,-500.0,0.00013698,2]
[404492517,1770214246879,-500.0,0.00013698,2]
[404492518,1770214246888,-500.0,0.00013698,2]
[404492519,1770214246899,-508.97591607,0.00013698,2]
[404492520,1770214246907,-500.0,0.00013698,2]
[404492521,1770214246917,-500.0,0.00013698,2]
[404492522,1770214246927,-500.0,0.00013698,2]
[404492523,1770214246938,-500.0,0.00013698,2]
[404492524,1770214246948,-500.0,0.00013698,2]
[404492525,1770214246959,-500.0,0.00013698,2]
[404492526,1770214246968,-500.0,0.00013698,2]
[404492527,1770214246978,-500.0,0.00013698,2]
[404492528,1770214246988,-500.0,0.00013698,2]
[404492529,1770214246997,-500.0,0.00013698,2]
[404492530,1770214247007,-500.0,0.00013698,2]
[404492531,1770214247016,-366.3187934,0.00013698,2]
[404492532,1770214247026,-500.0,0.00013698,2]
[404492533,1770214247035,-500.0,0.00013698,2]
[404492534,1770214247044,-500.0,0.00013698,2]
[404492535,1770214247053,-500.0,0.00013698,2]
[404492536,1770214247063,-500.0,0.00013698,2]
[404492537,1770214247072,-513.21673603,0.00013698,2]
[404492538,1770214247081,-500.0,0.00013698,2]
[404492539,1770214247090,-500.0,0.00013698,2]
[404492540,1770214247099,-500.0,0.00013698,2]
[404492541,1770214247109,-500.0,0.00013698,2]
[404492542,1770214247118,-403.2474264,0.00013698,2]
[404492543,1770214247127,-500.0,0.00013698,2]
[404492544,1770214247136,-500.0,0.00013698,2]
[404492545,1770214247146,-500.0,0.00013698,2]
[404492546,1770214247155,-500.0,0.00013698,2]
[404492547,1770214247164,-500.0,0.00013698,2]
[404492548,1770214247174,-500.0,0.00013698,2]
[404492549,1770214247183,-500.0,0.00013698,2]
[404492550,1770214247192,-500.0,0.00013698,2]
[404492551,1770214247201,-307.58505337,0.00013698,2]
[404492552,1770214247211,-500.0,0.00013698,2]
[404492553,1770214247220,-500.0,0.00013698,2]
[404492554,1770214247229,-500.0,0.00013698,2]
[404492555,1770214247238,-500.0,0.00013698,2]
[404492556,1770214247247,-500.0,0.00013698,2]
[404492557,1770214247257,-191.71020026,0.00013698,2]
[404492558,1770214247267,-7782.84974484,0.00013699,2]
[404492559,1770214247276,-13453.2,0.00013699,2]
[404492560,1770214247288,-200.0,0.00013699,2]
[404492561,1770214247297,-511.69,0.00013699,2]
[404492562,1770214247306,-500.0,0.00013699,2]
[404492563,1770214247317,-151.0,0.00013699,2]
[404492564,1770214247326,-444.12864415,0.00013699,2]
[404492565,1770214247335,-200.0,0.00013699,2]
[404492566,1770214247345,-200.0,0.00013699,2]
[404492567,1770214247355,-773.56,0.00013699,2]
[404492568,1770214247364,-200.0,0.00013699,2]
[404492569,1770214247372,-213.89063578,0.00013699,2]
[404492570,1770214247382,-1800.0,0.000137,2]
[404492571,1770214247391,-4711.72,0.000137,2]
[404492572,1770214247400,-4711.72,0.000137,2]
[404492573,1770214247409,-4711.72,0.000137,2]
[404492574,1770214247418,-4711.72,0.000137,2]
[404492575,1770214247427,-4711.72,0.000137,2]
[404492576,1770214247436,-500.0,0.00013711,2]
[404492577,1770214247445,-3719.99464827,0.00013725,2]
[404492578,1770214247454,-1258.94,0.00013738,2]
[404492579,1770214247463,-459.0,0.00013753,2]
[404492580,1770214247472,-500.0,0.00013766,2]
[404492581,1770214247481,-459.0,0.00013808,2]
[404492582,1770214247490,-500.0,0.0001382,2]
[404492583,1770214247499,-1134.45435208,0.00013826,2]
[404492584,1770214247508,-200.0,0.00013836,2]
[404492585,1770214247518,-200.0,0.00013836,2]
[404492586,1770214247527,-166.66,0.00013857,2]
[404492587,1770214247536,-459.0,0.00013862,2]
[404492588,1770214247546,-500.0,0.00013875,2]
[404492589,1770214247556,-2706.07283098,0.00013898,2]
[404492590,1770214247566,-3738.52584909,0.00013898,2]
[404492591,1770214247575,-459.0,0.00013917,2]
[404492592,1770214247585,-500.0,0.0001393,2]
[404492593,1770214247594,-459.0,0.00013972,2]
[404492594,1770214247603,-773.56,0.00013973,2]
[404492595,1770214247613,-200.0,0.00013974,2]
[404492596,1770214247622,-200.0,0.00013974,2]
[404492597,1770214247632,-500.0,0.00013985,2]
[404492598,1770214247642,-459.0,0.00014027,2]
[404492599,1770214247652,-500.0,0.0001404,2]
[404492600,1770214247662,-459.0,0.00014082,2]
[404492601,1770214247671,-500.0,0.00014094,2]
[404492602,1770214247681,-200.0,0.00014114,2]
[404492603,1770214247690,-200.0,0.00014114,2]
[404492604,1770214247699,-459.0,0.00014136,2]
[404492605,1770214247708,-500.0,0.00014149,2]
[404492606,1770214247718,-459.0,0.00014191,2]
[404492607,1770214247727,-500.0,0.00014204,2]
[404492608,1770214247736,-5033.2788,0.00014225,2]
[404492609,1770214247745,-459.0,0.00014246,2]
[404492610,1770214247758,-250.0,0.00014247,5]
[404492611,1770214247767,-250.0,0.00014247,5]
[404492612,1770214247776,-250.0,0.00014247,5]
[404492613,1770214247785,-250.0,0.00014247,5]
[404492614,1770214247795,-250.0,0.00014247,5]
[404492615,1770214247804,-250.0,0.00014247,5]
[404492616,1770214247813,-250.0,0.00014247,5]
[404492617,1770214247823,-250.0,0.00014247,5]
[404492618,1770214247833,-250.0,0.00014247,5]
[404492619,1770214247842,-250.0,0.00014247,5]
[404492620,1770214247852,-250.0,0.00014247,5]
[404492621,1770214247861,-250.0,0.00014247,5]
[404492622,1770214247871,-250.0,0.00014247,5]
[404492623,1770214247880,-250.0,0.00014247,5]
[404492624,1770214247889,-250.0,0.00014247,5]
[404492625,1770214247899,-250.0,0.00014247,5]
[404492626,1770214247910,-250.0,0.00014247,5]
[404492627,1770214247920,-185.602916,0.00014247,5]
[404492628,1770214247929,-775.21,0.00014247,2]
[404492629,1770214247938,-200.0,0.00014255,2]
[404492630,1770214247948,-200.0,0.00014255,2]
[404492631,1770214247958,-196.0,0.00014259,2]
[404492632,1770214247967,-889.14565212,0.00014298,2]
[404492633,1770214247977,-2706.07283098,0.00014299,2]
[404492634,1770214247987,-3738.52584909,0.00014299,2]
[404492635,1770214247996,-459.0,0.00014301,2]
[404492636,1770214248008,-166.66,0.00014315,2]
[404492637,1770214248018,-459.0,0.00014356,2]
[404492638,1770214248027,-511.69,0.00014384,2]
[404492639,1770214248037,-459.0,0.0001441,2]
[404492640,1770214248047,-459.0,0.00014465,2]
[404492641,1770214248056,-459.0,0.0001452,2]
[404492642,1770214248065,-459.0,0.00014575,2]
[404492643,1770214248075,-433.0,0.00014583,2]
[404492644,1770214248084,-500.0,0.000146,2]
[404492645,1770214248094,-500.0,0.000146,2]
[404492646,1770214248103,-500.0,0.000146,2]
[404492647,1770214248113,-501.46275829,0.000146,2]
[404492648,1770214248122,-500.43942892,0.000146,2]
[404492649,1770214248133,-568.24850317,0.000146,2]
[404492650,1770214248142,-500.0,0.000146,2]
[404492651,1770214248152,-500.0,0.000146,2]
[404492652,1770214248161,-500.0,0.000146,2]
[404492653,1770214248171,-500.0,0.000146,2]
[404492654,1770214248180,-500.0,0.000146,2]
[404492655,1770214248190,-500.0,0.000146,2]
[404492656,1770214248199,-438.12120673,0.000146,2]
[404492657,1770214248208,-500.0,0.000146,2]
[404492658,1770214248218,-500.0,0.000146,2]
[404492659,1770214248227,-422.32864224,0.000146,2]
[404492660,1770214248236,-500.0,0.000146,2]
[404492661,1770214248246,-500.0,0.000146,2]
[404492662,1770214248256,-500.0,0.000146,2]
[404492663,1770214248266,-500.0,0.000146,2]
[404492664,1770214248276,-500.0,0.000146,2]
[404492665,1770214248288,-500.0,0.000146,2]
[404492666,1770214248298,-500.0,0.000146,2]
[404492667,1770214248308,-207.06822891,0.000146,2]
[404492668,1770214248318,-500.35948587,0.000146,2]
[404492669,1770214248328,-459.0,0.00014629,2]
[404492670,1770214248337,-15089.0,0.00014632,2]
[404492671,1770214248347,-1134.45435208,0.00014641,2]
[404492672,1770214248358,-473.22977838,0.00014684,2]
[404492673,1770214248367,-2706.07283098,0.00014699,2]
[404492674,1770214248376,-3738.52584909,0.00014699,2]
[404492675,1770214248386,-1960.0,0.000147,3]
[404492676,1770214248395,-169.63,0.00014735,2]
[404492677,1770214248404,-166.66,0.00014772,2]
[404492678,1770214248414,-587.0,0.00014809,2]
[404492679,1770214248424,-2351.0,0.00014878,2]
[404492680,1770214248434,-163.0,0.000149,2]
[404492681,1770214248443,-1000.0,0.000149,2]
[404492682,1770214248453,-14216.56,0.000149,2]
[404492683,1770214248465,-1000.0,0.00014934,2]
[404492684,1770214248475,-675.51296807,0.00014999,2]
[404492685,1770214248485,-666.0,0.00014999,2]
[404492686,1770214248495,-2052.22892566,0.00015,2]
[404492687,1770214248506,-2142.26330442,0.00015,14]
[404492688,1770214248516,-7989.56617431,0.00015,2]
[404492689,1770214248526,-75514.3180957,0.00015,3]
[404493699,1770214756256,3013.8,8e-05,2]
[404493700,1770214887770,150.0,0.00022,120]
[404493701,1770214920791,150.0,0.00022,120]
[404493702,1770214946018,263.74,0.00021,30]
[404493718,1770215108861,166.0,0.00020865,120]
[404493719,1770215110179,166.0,0.00021908,120]
[404493725,1770215372022,-1000.0,0.00010938,2]
[404493726,1770215372043,-300.0,0.00010976,2]
[404493727,1770215372063,-500.0,0.00011014,2]
[404493728,1770215372083,-260.339206,0.00011089,2]
[404493729,1770215406059,166.0,0.00020812,120]
[404493730,1770215407394,166.0,0.00021853,120]
[404493738,1770215432025,-580.10146499,0.00011089,2]
[404493739,1770215432035,-19.89853501,0.000111,2]
[404493740,1770215432046,-239.29146499,0.000111,2]
[404493741,1770215432055,-2734.27536757,0.00011209,2]
[404493742,1770215432066,-1166.70865089,0.00011209,2]
[404493743,1770215432075,-1392.32,0.00011489,2]
[404493744,1770215432084,-1392.32,0.0001151,2]
[404493745,1770215432093,-1200.0,0.00011529,2]
[404493746,1770215432102,-300.0,0.0001153,2]
[404493747,1770215432111,-1392.32,0.00011531,2]
[404493748,1770215432121,-311.0,0.00011531,2]
[404493749,1770215432130,-150.0,0.00011531,2]
[404493750,1770215432139,-1392.32,0.00011552,2]
[404493751,1770215432148,-150.0,0.00011565,2]
[404493752,1770215432157,-202.08466483,0.00011566,2]
[404493753,1770215432166,-500.0,0.00011566,2]
[404493754,1770215432176,-500.0,0.00011566,2]
[404493755,1770215432185,-500.0,0.00011566,2]
[404493756,1770215432194,-500.0,0.00011566,2]
[404493757,1770215432204,-500.0,0.00011566,2]
[404493758,1770215432213,-500.0,0.00011566,2]
[404493759,1770215432222,-500.0,0.00011566,2]
[404493760,1770215432231,-500.0,0.00011566,2]
[404493761,1770215432241,-500.0,0.00011566,2]